{"text_format":"1","workbook":"xlsx","n_sheets":2,"sheets":["Jogo","NoBreak"],"not_rendered":{"charts":1,"images":33,"macros":1,"external_links":0,"defined_names":1,"comments":0,"pivot_tables":0},"unopened":[],"bounds":{"document_bytes":16777216,"sheet_cells":100000,"rows_first":2000,"rows_last":500,"rows_between":2000,"halvings":0,"cell_chars":16384,"cell_head_chars":4096},"cells_cut":0,"cells_raw":0,"read":"whole","date_system":"1900"}

{"sheet":"Jogo","index":0,"n_rows":64,"n_cols":8,"rows_kept":64,"cut":false,"hidden":true,"merged":[]}
[8,2,1,{"$f":"VLOOKUP(B1&C1,$G$1:$H$64,2,)","v":"Alagoas"},null,null,"11","Acre"]
[23,5,2,{"$f":"VLOOKUP(B2&C2,$G$1:$H$64,2,)","v":"BA"},null,null,"12","AC"]
[16,22,2,"RJ",null,null,"21","Alagoas"]
[29,14,2,"MT",null,null,"22","AL"]
[22,18,2,"PB",null,null,"31","Amazonas"]
[4,23,2,"RN",null,null,"32","AM"]
[18,4,1,"Amapá",null,null,"41","Amapá"]
[20,29,1,"São Paulo",null,null,"42","AP"]
[5,11,1,"Maranhão",null,null,"51","Bahia"]
[11,16,1,"Norte",null,null,"52","BA"]
[14,8,1,"Centro Oeste",null,null,"61","Brasil"]
[2,11,2,"MA",null,null,"62","Brasil"]
[null,20,2,"PI",null,null,"71","Ceará"]
[null,29,2,"SP",null,null,"72","CE"]
[null,14,1,"Mato Grosso",null,null,"81","Centro Oeste"]
[null,16,2,"Norte",null,null,"82","Centro_Oeste"]
[null,4,2,"AP",null,null,"91","Espírito Santo"]
[null,5,1,"Bahia",null,null,"92","ES"]
[null,23,1,"Rio Grande do Norte",null,null,"101","Goiás"]
[null,20,1,"Piauí",null,null,"102","GO"]
[null,22,1,"Rio de Janeiro",null,null,"111","Maranhão"]
[null,8,2,"Centro_Oeste",null,null,"112","MA"]
[null,18,1,"Paraíba",null,null,"121","Minas Gerais"]
[null,2,2,"AL",null,null,"122","MG"]
[null,null,null,null,null,null,"131","Mato Grosso do Sul"]
[null,null,null,null,null,null,"132","MS"]
[null,null,null,null,null,null,"141","Mato Grosso"]
[null,null,null,null,null,null,"142","MT"]
[null,null,null,null,null,null,"151","Nordeste"]
[null,null,null,null,null,null,"152","Nordeste"]
[null,null,null,null,null,null,"161","Norte"]
[null,null,null,null,null,null,"162","Norte"]
[null,null,null,null,null,null,"171","Pará"]
[null,null,null,null,null,null,"172","PA"]
[null,null,null,null,null,null,"181","Paraíba"]
[null,null,null,null,null,null,"182","PB"]
[null,null,null,null,null,null,"191","Pernambuco"]
[null,null,null,null,null,null,"192","PE"]
[null,null,null,null,null,null,"201","Piauí"]
[null,null,null,null,null,null,"202","PI"]
[null,null,null,null,null,null,"211","Paraná"]
[null,null,null,null,null,null,"212","PR"]
[null,null,null,null,null,null,"221","Rio de Janeiro"]
[null,null,null,null,null,null,"222","RJ"]
[null,null,null,null,null,null,"231","Rio Grande do Norte"]
[null,null,null,null,null,null,"232","RN"]
[null,null,null,null,null,null,"241","Rondônia"]
[null,null,null,null,null,null,"242","RO"]
[null,null,null,null,null,null,"251","Roraima"]
[null,null,null,null,null,null,"252","RR"]
[null,null,null,null,null,null,"261","Rio Grande do Sul"]
[null,null,null,null,null,null,"262","RS"]
[null,null,null,null,null,null,"271","Santa Catarina"]
[null,null,null,null,null,null,"272","SC"]
[null,null,null,null,null,null,"281","Sergipe"]
[null,null,null,null,null,null,"282","SE"]
[null,null,null,null,null,null,"291","São Paulo"]
[null,null,null,null,null,null,"292","SP"]
[null,null,null,null,null,null,"301","Sudeste"]
[null,null,null,null,null,null,"302","Sudeste"]
[null,null,null,null,null,null,"311","Sul"]
[null,null,null,null,null,null,"312","Sul"]
[null,null,null,null,null,null,"321","Tocantins"]
[null,null,null,null,null,null,"322","TO"]

{"sheet":"NoBreak","index":1,"n_rows":6,"n_cols":3,"rows_kept":6,"cut":false,"hidden":false,"merged":[[3,2,4,16],[5,2,15,16]]}
[]
[]
[]
[]
[]
[null,null,"Para ter acesso ao jogo, clique no botão Habilitar Conteúdo."]